[Event "85th Armenian Mens-ch 2024"]
[Site "Yerevan"]
[Date "2024.11.30"]
[Round "7.1"]
[White "Pogosyan, Stefan"]
[Black "Sargsyan, Sargis Vach."]
[Result "1/2-1/2"]
[ECO "D38"]
[WhiteElo "2407"]
[BlackElo "2321"]
[Annotator "TA"]
[PlyCount "38"]
[EventDate "2024.11.24"]
[EventCountry "ARM"]
[SourceTitle "playchess.com"]
[Source "ChessBase"]
[SourceQuality "1"]
[TimeControl "40/5400+30:1800+30"]

{[%evp 10,38,5,10,8,16,3,8,12,0,0,4,16,0,7,0,4,9,20,25,25,19,16,13,22,14,17,28,22,28,27]} 1. d4 {[%emt 0:16:11]} Nf6 {[%emt 0:00:35]} 2. c4 {[%emt 0:00:17]} e6 {[%emt 0:00:09]} 3. Nf3 {[%emt 0:00:05]} d5 {[%emt 0:00:13]} 4. Nc3 {[%emt 0:00:05]} Bb4 {[%emt 0:00:24]} 5. Qb3 {[%emt 0:00:51]} c5 {[%emt 0:00:11]} 6. dxc5 {[%emt 0:00:14]} Na6 {[%emt 0:01:28][%cal Bb8a6,Ba6c5,Bc5e4][%mdl 32]} 7. a3 {[%emt 0:00:57]} Bxc3+ {[%emt 0:00:42]} 8. Qxc3 {[%emt 0:00:07] Threatens to win with b4.} Nxc5 {[%emt 0:00:08]} 9. cxd5 {[%emt 0:00:09]} Qxd5 {[%emt 0:00:06]} 10. Be3 {[%emt 0:00:09]} Nce4 {[%emt 0:00:51] A dynamic duo of knights.} 11. Qb4 {[%emt 0:15:30]} a5 {[%emt 0:01:31]} 12. Qd4 {[%emt 0:01:09]} O-O {[%emt 0:01:13]} 13. g3 {[%emt 0:00:50]} a4 {[%emt 0:14:28]} 14. Bg2 {[%emt 0:10:43]} Qa5+ {[%emt 0:02:04]} 15. Qb4 {[%emt 0:03:23]} Qxb4+ {[%emt 0:00:59]} 16. axb4 {[%emt 0:00:26]} Nd5 {[%emt 0:01:14]} 17. Nd2 {[%emt 0:14:19]} Nxd2 {[%emt 0:01:41]} 18. Bxd5 {[%emt 0:00:42]} exd5 {[%emt 0:00:06]} 19. Kxd2 {[%emt 0:00:04]} Bd7 {[%emt 0:00:07]} 1/2-1/2

[Event "85th Armenian Mens-ch 2024"]
[Site "Yerevan"]
[Date "2024.11.30"]
[Round "7.2"]
[White "Sukiasyan, Vahe A."]
[Black "Shahinyan, Vladimir"]
[Result "1-0"]
[ECO "E11"]
[WhiteElo "2368"]
[BlackElo "2161"]
[Annotator "TA"]
[PlyCount "91"]
[EventDate "2024.11.24"]
[EventCountry "ARM"]
[SourceTitle "playchess.com"]
[Source "ChessBase"]
[SourceQuality "1"]
[TimeControl "40/5400+30:1800+30"]

{[%evp 15,91,10,14,0,0,-23,-20,-29,-5,-23,-26,-14,-18,-16,-17,0,0,-7,0,-118,-139,-154,-167,-146,-117,-171,-102,-105,-112,-97,-128,-159,-129,-276,-264,-251,-262,-253,-204,-208,-112,-304,-211,-338,-164,-162,-121,-104,129,36,31,42,406,436,482,473,620,604,660,677,667,647,862,827,947,822,871,802,799,754,1099,1083,1075,1045,984,979,934,922]} 1. d4 {[%emt 0:35:56]} Nf6 {[%emt 0:00:32]} 2. c4 {[%emt 0:00:03]} e6 {[%emt 0:00:07]} 3. Nf3 {[%emt 0:00:02]} d5 {[%emt 0:00:48]} 4. g3 {[%emt 0:01:10]} Bb4+ {[%emt 0:00:08]} 5. Bd2 {[%emt 0:00:03]} Be7 {[%emt 0:00:08]} 6. Bg2 {[%emt 0:00:04]} O-O {[%emt 0:00:16]} 7. O-O {[%emt 0:00:02]} c6 {[%emt 0:00:06]} 8. Qc2 {[%emt 0:00:03]} b6 {[%emt 0:01:40]} 9. Nc3 {[%emt 0:01:56]} Nbd7 {[%emt 0:01:53]} 10. b3 {[%emt 0:00:11]} Ba6 {[%emt 0:04:10]} 11. e4 {[%emt 0:00:02]} dxc4 {[%emt 0:02:01]} 12. Rfe1 {[%emt 0:00:03]} Rc8 {[%emt 0:16:20]} 13. h4 {[%emt 0:00:04]} h6 {[%emt 0:05:33]} 14. Nd1 {[%emt 0:00:06]} c5 {[%emt 0:06:42]} 15. d5 $1 {[%emt 0:09:50]} exd5 {[%emt 0:01:18]} 16. e5 $1 {[%emt 0:00:06]} (16. exd5 Nxd5 17. bxc4 N5f6 $15) 16... Ne4 {[%emt 0:07:45]} 17. Ne3 {[%emt 0:07:05] [#]} (17. Bf4 $1 $11 {remains equal.}) 17... c3 $1 $17 {[%emt 0:02:59]} 18. Bc1 {[%emt 0:00:36]} (18. Nxd5 Nxd2) 18... Bb7 {[%emt 0:04:02]} 19. Nf5 {[%emt 0:02:51]} Re8 {[%emt 0:05:57]} 20. Bf4 {[%emt 0:02:28]} (20. Bxh6 $17 gxh6 21. Nxh6+ Kf8 22. Qc1) 20... Nf8 {[%emt 0:03:45]} (20... c4 $19 21. N3d4 Bf8) 21. Rad1 {[%emt 0:03:53][%cal Oe1e4]} Qd7 $1 {[%emt 0:02:11]} 22. Bh3 {[%emt 0:07:06][%cal Of5h6] [#]} Qc6 $1 {[%emt 0:01:18]} 23. e6 {[%emt 0:01:36] Threatens to win with exf7+.} f6 {[%emt 0:03:43]} 24. Bxh6 {[%emt 0:10:25]} Nxe6 $19 {[%emt 0:05:40]} (24... gxh6 25. Qc1 Nd6 (25... Qxe6 $2 26. Nxh6+ Kg7 27. Bxe6 $18) (25... Nxe6 26. Qxh6 Bf8 27. Qg6+ Kh8 28. Qh5+ Kg8 29. Qg6+ Kh8 30. Rxe4 $11) 26. Qxh6 Nxf5 27. Bxf5 $11) 25. Bc1 {[%emt 0:03:33]} Bf8 {[%emt 0:00:08]} 26. Bg2 {[%emt 0:00:34]} g6 {[%emt 0:03:17]} 27. Ne3 {[%emt 0:00:03]} Rcd8 {[%emt 0:01:34]} (27... Qd6 $19 28. h5 d4 (28... gxh5 $2 29. Nf5 $19)) 28. h5 $2 {[%emt 0:04:58]} d4 {[%emt 0:03:43]} (28... gxh5 29. Nxd5 Rxd5 30. Qxe4 Rxd1 31. Qg6+ Ng7 32. Rxd1 $19) 29. Nc4 {[%emt 0:00:17]} (29. Ng4 $142 Nc7 (29... gxh5 30. Nfe5 $17) 30. Nxd4 Rxd4 (30... cxd4 31. Bxe4 Rxe4 32. Qxe4 $17) 31. Rxe4 Rexe4 (31... Rxd1+ 32. Qxd1 f5 33. Nf6+ Qxf6 34. Rxe8 $15) 32. Bxe4 Rxe4 33. Qxe4 Qxe4 34. Nxf6+ Kh8 35. Nxe4 Bxe4 36. f3) 29... g5 {[%emt 0:00:39]} (29... gxh5 $142 30. Nfe5 Qc7 (30... fxe5 $2 31. Nxe5 Qc7 32. Bxe4 $19) 31. Bxe4 fxe5 32. Nxe5 Bxe4 33. Qxe4 a5) 30. Nfe5 fxe5 {[%emt 0:02:46]} 31. Bxe4 {[%emt 0:00:49] [#]} d3 $2 {[%emt 0:02:06]} 32. Bxc6 {[%emt 0:02:36]} (32. Bxd3 $2 Qh1#) ({But not} 32. Qxc3 Qxe4 33. Rxe4 Bxe4) ({White should try} 32. Rxd3 $16 Nd4 33. Qxc3 (33. Bxg5 $2 Qxe4 34. Rxe4 Nxc2 $19)) 32... dxc2 $14 {[%emt 0:01:27]} 33. Rxd8 {[%emt 0:00:04]} Rxd8 $4 {[%emt 0:01:24][%mdl 8192]} ({Better is} 33... Bxc6 $14 34. Rxe8 Bxe8 35. Rxe5 Bf7) 34. Bxb7 $18 {[%emt 0:00:08]} Rd1 {[%emt 0:01:11]} 35. Kf1 $1 {[%emt 0:00:45]} g4 {[%emt 0:00:33][%cal Of8h6]} 36. Nxe5 {[%emt 0:02:11]} Nd4 {[%emt 0:00:38]} 37. Bd5+ {[%emt 0:00:11]} Kh7 {[%emt 0:00:41]} 38. Nxg4 {[%emt 0:00:45]} c4 {[%emt 0:00:03]} 39. bxc4 {[%emt 0:00:42]} a5 {[%emt 0:03:02][%cal Ba7a5,Ba5a4,Ba4b3,Bb3c2][%mdl 32]} 40. Ne5 {[%emt 0:00:00]} Bh6 {[%emt 0:00:00]} 41. f4 {[%emt 0:06:22]} a4 {[%emt 0:01:38]} 42. Nf3 {[%emt 0:01:36]} Nb3 {[%emt 0:00:45]} 43. axb3 {[%emt 0:00:14]} axb3 {[%emt 0:00:11]} 44. Be4+ {[%emt 0:00:13]} Kg8 {[%emt 0:00:30] [#]} 45. Bxc2 $1 {[%emt 0:00:08]} bxc2 {[%emt 0:00:27]} 46. Ke2 {[%emt 0:00:04]} 1-0

[Event "85th Armenian Mens-ch 2024"]
[Site "Yerevan"]
[Date "2024.11.30"]
[Round "7.3"]
[White "Hakobyan, Erik"]
[Black "Sahakyan, Aleks"]
[Result "1/2-1/2"]
[ECO "C11"]
[WhiteElo "2409"]
[BlackElo "2380"]
[Annotator "TA"]
[PlyCount "82"]
[EventDate "2024.11.24"]
[EventCountry "ARM"]
[SourceTitle "playchess.com"]
[Source "ChessBase"]
[SourceQuality "1"]
[TimeControl "40/5400+30:1800+30"]

{[%evp 20,82,14,24,16,22,18,33,35,15,8,19,9,17,45,4,9,0,0,0,0,0,12,0,26,32,25,33,77,-90,-103,-107,-147,-133,-36,-28,-47,-95,-98,-102,-26,-15,-7,-21,-13,-98,-99,-97,-76,-124,0,0,0,0,0,0,71,52,51,0,0,0,21,22,18]} 1. e4 {[%emt 0:00:10][%cal Be2e4,Be4e5][%mdl 32]} e6 {[%emt 0:00:06]} 2. d4 {[%emt 0:00:13]} d5 {[%emt 0:00:06]} 3. Nc3 {[%emt 0:00:07]} Nf6 {[%emt 0:00:04]} 4. e5 {[%emt 0:00:18]} Nfd7 {[%emt 0:00:06]} 5. f4 {[%emt 0:00:06]} c5 {[%emt 0:00:04]} 6. Nf3 {[%emt 0:00:05]} Nc6 {[%emt 0:00:03]} 7. Be3 {[%emt 0:00:38]} cxd4 {[%emt 0:00:05]} 8. Nxd4 {[%emt 0:00:00]} Qb6 {[%emt 0:00:03]} 9. Qd2 {[%emt 0:00:07]} Qxb2 {[%emt 0:00:05]} 10. Rb1 {[%emt 0:00:06]} Qa3 {[%emt 0:00:03]} 11. Bb5 $1 {[%emt 0:00:17]} Nxd4 {[%emt 0:00:09]} 12. Bxd4 {[%emt 0:00:10][%cal Of4f5]} a6 {[%emt 0:00:03]} (12... Bb4 13. O-O a6 14. Rb3 Qa5) 13. Bxd7+ {[%emt 0:00:18]} Bxd7 {[%emt 0:00:05]} 14. Rb3 {[%emt 0:00:06]} Qe7 $1 {[%emt 0:00:03]} (14... Qa5 $2 15. Bb6 $18 (15. Rxb7 Bb4 $17)) 15. Rxb7 {[%emt 0:00:06]} Qd8 {[%emt 0:00:03]} 16. O-O {[%emt 0:00:29]} Qc8 {[%emt 0:00:03]} 17. Rb3 {[%emt 0:00:42]} Bc5 {[%emt 0:01:06]} 18. Rf2 {[%emt 0:00:16]} O-O {[%emt 0:00:34]} 19. f5 {[%emt 0:01:06][%cal Bf4f5,Bf5f6][%mdl 32]} Bxd4 {[%emt 0:05:50]} (19... exf5 $6 20. Nxd5 Kh8 21. Bxc5 Qxc5 22. Nb6 $16) 20. Qxd4 {[%emt 0:00:16]} Qc4 {[%emt 0:00:03]} 21. Qd2 {[%emt 0:03:19]} Qc7 {[%emt 0:22:34]} 22. f6 {[%emt 0:44:15]} Qxe5 {[%emt 0:05:35]} 23. Nd1 {[%emt 0:00:21]} Rfb8 {[%emt 0:29:50]} (23... gxf6 $2 24. Qh6 $18) 24. Re3 $2 {[%emt 0:19:51]} (24. Rg3 $1 $16 {[%cal Rg3g5] is necessary to keep the advantage.} Rb1 (24... g6 $2 25. Qh6 $18) 25. Rf1 (25. Rxg7+ Kh8 $18)) 24... Qd6 $1 $17 {[%emt 0:06:15]} 25. Rh3 {[%emt 0:03:51] [#]} Rb1 $1 $36 {[%emt 0:04:41][%mdl 2048] White is under strong pressure.} 26. Rf1 {[%emt 0:00:30] Black must now prevent Qg5.} e5 {[%emt 0:05:03]} ({Better is} 26... Qc5+ $17 27. Kh1 Bb5) 27. Qg5 $1 $15 {[%emt 0:06:48][%csl Gf6][%cal Rg5g7]} Qf8 $1 {[%emt 0:00:18]} 28. Rh4 {[%emt 0:02:49] [#]} (28. Rb3 $15 {should be considered.} h6 29. Qxe5 Rxb3 30. axb3) 28... g6 $1 $17 {[%emt 0:02:40] and ...Bb5 should not be overlooked} 29. Ne3 {[%emt 0:04:23]} Rab8 {[%emt 0:02:42]} (29... Rxf1+ $17 30. Kxf1 Bc6) 30. Qxe5 $11 {[%emt 0:00:52]} Rxf1+ {[%emt 0:02:00]} (30... Be6 {simplifies} 31. Rd4 h5 32. Nxd5 Bxd5 33. Rxd5 Rxf1+ 34. Kxf1 Qb4) 31. Kxf1 {[%emt 0:00:57]} Re8 {[%emt 0:02:17]} 32. Qd4 {[%emt 0:02:33]} (32. Qg5 $11 {keeps the balance.}) 32... Qa3 $17 {[%emt 0:04:41]} 33. Kf2 {[%emt 0:00:57]} Bb5 {[%emt 0:00:14]} (33... Qxa2 $6 34. Rxh7 Qa5 (34... Kxh7 35. Qh4+ Kg8 36. Qh6) 35. Rg7+ (35. Qxd5 Qxd5 36. Rg7+ Kh8 $11) 35... Kf8 36. Nxd5 (36. Qxd5 Qxd5 37. Nxd5 Re5 $11) 36... Qe1+ 37. Kf3 Qe2+ 38. Kg3 Qe5+ 39. Qxe5 Rxe5 40. c4 $11) 34. Rh3 {[%emt 0:01:45]} ({White should try} 34. Rg4) 34... Qd6 {[%emt 0:05:45]} (34... Qxa2 35. Rxh7 Qa4 (35... Kxh7 36. Qh4+ Kg8 37. Qh6) 36. Rg7+ (36. Qxd5 $2 Qf4+ 37. Qf3 Qxf3+ 38. Kxf3 Kxh7 $19) 36... Kh8 37. c4 $18 (37. Qxd5 $2 Qh4+ 38. g3 Qxf6+ 39. Qf3 Qxg7 $19) (37. Qxa4 Bxa4 38. Rxf7 d4 $14)) (34... Re6 $17 35. Rf3 Qxa2) 35. c4 $11 {[%emt 0:03:50] The board is on fire.} Re4 {[%emt 0:00:42]} 36. Qxd5 {[%emt 0:00:20]} Qxd5 {[%emt 0:02:48]} (36... Qxf6+ 37. Rf3 Qh4+ 38. g3 $16) (36... Rf4+ {seems wilder.} 37. Rf3 Rxf3+ 38. gxf3 Qxh2+ 39. Ke1 Qg3+) 37. cxd5 {[%emt 0:01:31] KRB-KRN. White is a pawn up.} Ra4 {[%emt 0:00:07]} (37... h5 $11) 38. Nc2 $16 {[%emt 0:00:11]} h5 {[%emt 0:01:58]} 39. a3 {[%emt 0:04:09]} (39. Rc3 $14 Rf4+ 40. Ke3 Rxf6 41. h4) 39... Rc4 $11 {[%emt 0:00:10]} 40. Ne3 {[%emt 0:00:00]} Rc3 {[%emt 0:01:26]} 41. Nd1 {[%emt 0:32:12]} Rc2+ {[%emt 0:30:30]} 1/2-1/2

[Event "85th Armenian Mens-ch 2024"]
[Site "Yerevan"]
[Date "2024.11.30"]
[Round "7.4"]
[White "Piliposyan, Robert"]
[Black "Babujian, Levon"]
[Result "1/2-1/2"]
[ECO "E51"]
[WhiteElo "2418"]
[BlackElo "2330"]
[Annotator "TA"]
[PlyCount "89"]
[EventDate "2024.11.24"]
[EventCountry "ARM"]
[SourceTitle "playchess.com"]
[Source "ChessBase"]
[SourceQuality "1"]
[TimeControl "40/5400+30:1800+30"]

{[%evp 11,89,-4,10,10,17,10,17,11,20,11,18,16,22,35,29,23,28,17,27,28,30,22,36,0,0,0,0,0,0,0,0,0,0,-1,4,0,0,-21,-20,-42,-42,-74,0,0,0,0,0,0,0,0,0,0,0,-4,0,0,0,0,0,0,0,0,0,0,0,0,0,0,0,0,0,0,0,0,0,0,0,0,0,0]} 1. d4 {[%emt 0:00:14]} Nf6 {[%emt 0:00:06]} 2. c4 {[%emt 0:00:05]} e6 {[%emt 0:00:04]} 3. Nc3 {[%emt 0:00:13]} Bb4 {[%emt 0:00:10]} 4. e3 {[%emt 0:00:06]} O-O {[%emt 0:00:25]} 5. Bd2 {[%emt 0:00:11]} d5 {[%emt 0:02:10]} 6. Nf3 {[%emt 0:00:25]} Nbd7 {[%emt 0:06:25]} 7. cxd5 {[%emt 0:09:03]} exd5 {[%emt 0:00:41]} 8. Qb3 {[%emt 0:00:08][%csl LRb4,LRd5] Prevents c6.} Bxc3 {[%emt 0:00:16]} 9. Bxc3 {[%emt 0:03:03]} a5 {[%emt 0:04:40]} 10. Be2 {[%emt 0:04:43]} b6 {[%emt 0:01:18]} 11. O-O {[%emt 0:04:13]} Ba6 {[%emt 0:00:31]} 12. Bxa6 {[%emt 0:01:40]} Rxa6 {[%emt 0:00:56]} 13. a4 {[%emt 0:01:07]} c6 {[%emt 0:04:04]} 14. Qc2 {[%emt 0:08:46]} Ne4 {[%emt 0:05:08]} 15. b3 {[%emt 0:01:58]} Ra8 {[%emt 0:00:26]} 16. Bb2 {[%emt 0:01:27]} Rc8 {[%emt 0:00:15]} 17. Ne5 {[%emt 0:01:03]} Nxe5 {[%emt 0:04:42]} 18. dxe5 {[%emt 0:00:20]} Qg5 {[%emt 0:00:38]} 19. Rae1 {[%emt 0:14:49]} Qg6 {[%emt 0:06:48]} 20. Rc1 {[%emt 0:05:15]} Rfe8 {[%emt 0:01:21]} 21. Bd4 {[%emt 0:01:59]} c5 {[%emt 0:03:30]} 22. Bb2 {[%emt 0:06:31]} c4 {[%emt 0:13:04]} 23. bxc4 {[%emt 0:10:45]} Rxc4 {[%emt 0:00:54]} 24. Qd1 {[%emt 0:03:54]} Qc6 {[%emt 0:01:13]} 25. Bd4 {[%emt 0:05:45]} Nc5 {[%emt 0:08:27]} (25... Qxa4 26. Qxa4 Rxa4 27. Rfe1 $11 (27. Bxb6 Nd2 $15)) 26. f4 {[%emt 0:03:47]} Rxc1 {[%emt 0:03:52]} ({Don't play} 26... Rxa4 27. Qf3 $11) (26... Nxa4 $17 {And now ...Nc3 would win.} 27. f5 Nc3 28. Rxc3 Rxc3) 27. Qxc1 $11 {[%emt 0:00:04]} Qxa4 {[%emt 0:00:03]} 28. Bxc5 {[%emt 0:00:22]} bxc5 {[%emt 0:00:57]} 29. Qxc5 $17 {[%emt 0:00:05][%mdl 4096] Endgame KQR-KQR} Qb3 {[%emt 0:01:17]} 30. Qxa5 {[%emt 0:05:16]} Qxe3+ {[%emt 0:00:05]} 31. Kh1 {[%emt 0:00:04]} d4 {[%emt 0:01:22]} 32. Qe1 {[%emt 0:01:02] Prevents d3.} Qc3 {[%emt 0:04:16]} 33. Qxc3 {[%emt 0:01:46]} dxc3 $11 {[%emt 0:00:36] KR-KR} 34. Rc1 {[%emt 0:00:07]} Rc8 {[%emt 0:00:47]} 35. Kg1 {[%emt 0:00:48]} h5 {[%emt 0:03:13]} 36. Kf2 {[%emt 0:00:39]} Kh7 {[%emt 0:00:04]} 37. Ke3 {[%emt 0:01:22]} Kg6 {[%emt 0:00:04]} 38. Kd3 {[%emt 0:01:13]} Kf5 {[%emt 0:00:08]} 39. g3 {[%emt 0:00:42]} g5 {[%emt 0:15:57]} 40. fxg5 {[%emt 0:00:00]} Kxe5 {[%emt 0:00:00]} 41. Rxc3 {[%emt 0:01:44]} Rxc3+ {[%emt 0:07:08]} 42. Kxc3 {[%emt 0:00:04]} Ke4 {[%emt 0:01:28]} 43. Kc4 {[%emt 0:01:24]} Kf3 {[%emt 0:01:01] ( -> ...Kg2)} 44. Kd4 {[%emt 0:00:26]} Kg4 {[%emt 0:00:49]} 45. Ke4 {[%emt 0:34:22]} 1/2-1/2

[Event "85th Armenian Mens-ch 2024"]
[Site "Yerevan"]
[Date "2024.11.30"]
[Round "7.5"]
[White "Gasparyan, Erik R."]
[Black "Agasarov, Benik"]
[Result "1/2-1/2"]
[ECO "C43"]
[WhiteElo "2371"]
[BlackElo "2410"]
[Annotator "TA"]
[PlyCount "69"]
[EventDate "2024.11.24"]
[EventCountry "ARM"]
[SourceTitle "playchess.com"]
[Source "ChessBase"]
[SourceQuality "1"]
[TimeControl "40/5400+30:1800+30"]

{[%evp 9,69,3,10,15,18,13,10,-29,12,-6,-2,0,0,-6,0,0,32,0,0,8,0,4,45,45,43,28,82,58,172,156,116,63,150,116,121,120,130,147,156,154,153,151,350,335,344,240,248,231,247,238,249,154,162,126,176,80,113,79,98,-8,-4,-8]} 1. e4 {[%emt 0:35:58]} e5 {[%emt 0:02:05]} 2. Nf3 {[%emt 0:00:10]} Nf6 {[%emt 0:08:40]} 3. d4 {[%emt 0:00:29]} Nxe4 {[%emt 0:00:20]} 4. dxe5 {[%emt 0:00:14]} d5 {[%emt 0:03:54]} 5. Nbd2 {[%emt 0:00:13]} Qd7 {[%emt 0:00:07]} 6. Bd3 {[%emt 0:00:05]} Nc5 {[%emt 0:00:07]} 7. Be2 {[%emt 0:00:07]} Ne6 {[%emt 0:00:20]} 8. Nf1 {[%emt 0:06:08]} c5 {[%emt 0:02:25]} 9. Ng3 {[%emt 0:01:08]} Nc6 {[%emt 0:01:09]} 10. O-O {[%emt 0:02:31]} g6 {[%emt 0:06:27]} 11. c4 {[%emt 0:06:19]} d4 {[%emt 0:04:04]} 12. Re1 {[%emt 0:04:42]} Be7 {[%emt 0:10:19]} 13. Bh6 {[%emt 0:04:43]} b6 {[%emt 0:00:05]} 14. a3 {[%emt 0:00:21]} Bb7 {[%emt 0:00:33]} 15. Bd3 {[%emt 0:00:55]} a5 {[%emt 0:02:05]} 16. Ne4 {[%emt 0:08:14]} O-O-O $1 {[%emt 0:02:25]} 17. Neg5 {[%emt 0:01:46]} Nxg5 {[%emt 0:03:27]} (17... Bxg5 $1 $11 {remains equal.} 18. Bxg5 Nxg5 19. Nxg5 h6) 18. Nxg5 $16 {[%emt 0:01:17]} Bf8 {[%emt 0:00:05]} (18... Bxg5 $14 19. Bxg5 Rde8) 19. Bxf8 $18 {[%emt 0:00:51]} Rdxf8 {[%emt 0:00:06]} 20. Qb3 {[%emt 0:06:09]} ({Better is} 20. b4 $16 {aiming for bxc5.} axb4 21. axb4 Nxb4 22. Be4) 20... f6 {[%emt 0:15:00]} (20... Qc7 $14) 21. e6 $36 {[%emt 0:02:28][%mdl 2048] Keeping Black busy.} Qc7 {[%emt 0:05:33] [#]} 22. e7 $1 {[%emt 0:00:29][%mdl 512] White has more active pieces.} Nxe7 {[%emt 0:08:04]} (22... fxg5 23. exf8=N) 23. Ne6 {[%emt 0:00:10][%csl LRc7,LRf8]} Qd6 {[%emt 0:00:25]} (23... Qc6 $2 24. Be4 (24. Nxf8 $2 Qxg2#) 24... Qd6 25. Nxf8 Rxf8 26. Qh3+ Nf5 27. Bxb7+ (27. Qxh7 Bxe4 28. Rxe4 Qd7 $18) (27. Bxf5+ gxf5 28. Qxh7 Qc6 $18) 27... Kxb7 28. Qxh7+ Qc7 29. Qxg6 $18) 24. Nxf8 {[%emt 0:00:30]} Rxf8 {[%emt 0:00:01]} 25. Re2 {[%emt 0:01:45] Rae1 would now be deadly.} Qd8 $2 {[%emt 0:06:41]} (25... Kb8 $16 26. Rae1 Nc8) 26. Rae1 {[%emt 0:02:14]} Nc6 {[%emt 0:00:09]} 27. Be4 {[%emt 0:01:44]} Ne5 {[%emt 0:00:43]} 28. Qh3+ {[%emt 0:04:27]} Kb8 {[%emt 0:00:20]} 29. Bxb7 {[%emt 0:01:50]} ({Don't take} 29. Qxh7 $6 Bxe4 30. Rxe4 Rh8 $16) 29... Kxb7 {[%emt 0:00:05]} 30. Qxh7+ {[%emt 0:00:21]} Rf7 {[%emt 0:01:25]} 31. Qh4 {[%emt 0:00:01] And now Rxe5 would win.} Rd7 {[%emt 0:00:51] [#]} (31... Qc7 $16 {might work better.} 32. b3 a4) 32. Qe4+ {[%emt 0:02:49]} (32. f4 $1 $18 {[%cal Rf4e5] is more deadly.} d3 33. Re4) 32... Ka7 {[%emt 0:00:16][%cal Od4d3]} 33. f4 {[%emt 0:00:44]} Nxc4 {[%emt 0:02:48]} 34. b4 {[%emt 0:00:10]} (34. Qxg6 $16 {Threatens to win with Re8.} Ne3 (34... d3 $2 35. Re8 $18) 35. h3) 34... d3 $11 {[%emt 0:00:38]} 35. Qxc4 {[%emt 0:02:10] Weighted Error Value: White=0.25 (precise) /Black=0.27 (precise) .  Loses game:     	---       	Black=1      Mistake:       	White=3     	Black=4      Inaccurate:     	White=5     	Black=4      OK:         	White=10    	Black=7      Best:        	White=3     	Black=1      Strong:       	---       	Black=1} 1/2-1/2

[Event "85th Armenian Mens-ch 2024"]
[Site "Yerevan"]
[Date "2024.11.30"]
[Round "7.6"]
[White "Gharibyan, Mamikon"]
[Black "Davtyan, Arsen"]
[Result "1-0"]
[ECO "C54"]
[WhiteElo "2462"]
[BlackElo "2400"]
[Annotator "TA"]
[PlyCount "101"]
[EventDate "2024.11.24"]
[EventCountry "ARM"]
[SourceTitle "playchess.com"]
[Source "ChessBase"]
[SourceQuality "1"]
[TimeControl "40/5400+30:1800+30"]

{[%evp 35,101,0,0,0,0,0,0,-44,-43,-43,-17,-111,0,0,0,-12,-8,-1,12,2,0,-17,-9,-21,-33,-16,37,-8,0,0,0,0,0,0,0,0,0,0,0,0,0,-108,-108,-109,-107,-113,90,85,111,105,139,147,183,182,183,182,176,182,274,257,560,527,879,942,12849,12848,5497,3497]} 1. e4 {[%emt 0:00:07]} e5 {[%emt 0:00:05]} 2. Nf3 {[%emt 0:00:08]} Nc6 {[%emt 0:00:08]} 3. Bc4 {[%emt 0:00:29]} Bc5 {[%emt 0:00:06]} 4. c3 {[%emt 0:00:12]} Nf6 {[%emt 0:00:06]} 5. d3 {[%emt 0:00:05]} d6 {[%emt 0:00:05]} 6. O-O {[%emt 0:00:11]} a5 {[%emt 0:00:36]} 7. Re1 {[%emt 0:01:11]} O-O {[%emt 0:00:15]} 8. Nbd2 {[%emt 0:01:11]} Be6 {[%emt 0:07:11]} 9. Bb5 {[%emt 0:01:44]} Qb8 {[%emt 1:26:28]} 10. h3 {[%emt 0:06:13]} Qa7 {[%emt 0:06:49]} 11. Re2 {[%emt 0:00:34]} a4 {[%emt 0:01:25]} 12. Nf1 {[%emt 0:01:51]} h6 {[%emt 0:00:23]} 13. Ng3 {[%emt 0:01:51]} Qa5 {[%emt 0:00:20]} 14. Bxc6 {[%emt 0:00:18]} bxc6 {[%emt 0:00:06]} 15. c4 {[%emt 0:02:25]} Rfe8 {[%emt 0:11:22]} 16. Rc2 {[%emt 0:08:25]} Qa7 {[%emt 0:05:16]} 17. Nh4 {[%emt 1:12:05]} d5 {[%emt 0:14:00]} 18. Qf3 {[%emt 0:09:16]} dxe4 {[%emt 0:05:54]} 19. dxe4 {[%emt 0:00:16]} Kh7 $1 {[%emt 0:03:04]} 20. Nhf5 {[%emt 0:26:36]} Ng8 {[%emt 0:02:54]} 21. Nh5 {[%emt 0:02:38]} g6 {[%emt 0:12:23]} 22. Nhg3 $1 {[%emt 0:11:04]} Rad8 {[%emt 0:05:33]} (22... gxf5 $6 23. exf5 e4 24. Nxe4 $14) (22... Red8 $5) 23. Bd2 {[%emt 0:16:37]} (23. Kh2 $11 {remains equal.}) 23... Bf8 {[%emt 0:11:07]} (23... gxf5 $17 24. exf5 Bxc4 25. Rxc4 Rxd2) 24. Ne3 $11 {[%emt 0:02:00]} Rd3 {[%emt 0:00:22]} 25. Ngf1 {[%emt 0:01:24]} Red8 {[%emt 0:00:57]} 26. Rac1 {[%emt 0:01:10]} Qc5 {[%emt 0:01:27]} 27. Qe2 {[%emt 0:00:56]} R3d7 {[%emt 0:04:24]} 28. Nd5 {[%emt 0:04:06]} Bg7 {[%emt 0:00:23]} (28... cxd5 $6 29. cxd5 Qe7 30. dxe6 Qxe6 31. Ba5 $16 (31. Rxc7 Qxa2 32. Rxd7 Rxd7 $16)) 29. b3 {[%emt 0:02:14]} axb3 {[%emt 0:00:37]} (29... cxd5 30. cxd5 Qe7 31. dxe6 Qxe6 32. bxa4 $16) 30. axb3 {[%emt 0:00:04]} Qf8 {[%emt 0:01:35]} (30... cxd5 $6 31. cxd5 Qe7 32. dxe6 Qxe6 33. b4 $16 (33. Rxc7 Qxb3 34. R7c4 Nf6 $11)) ({Black should play} 30... Qa3 $11) 31. Ba5 {[%emt 0:02:18]} (31. Bb4 {simplifies} Qe8 32. Ba5 cxd5 33. cxd5 Bxd5 34. exd5 Ne7 35. Bxc7 Ra8 36. Bxe5 Nxd5 37. Bxg7 Qxe2 38. Rxe2 Kxg7 39. Rd2) 31... Rc8 {[%emt 0:01:47]} (31... cxd5 32. cxd5 Nf6 33. dxe6 $18) 32. b4 {[%emt 0:02:35]} f5 {[%emt 0:01:08]} 33. b5 {[%emt 0:00:55]} cxd5 {[%emt 0:00:56]} 34. cxd5 {[%emt 0:00:04]} Bf7 {[%emt 0:00:19]} 35. Bxc7 {[%emt 0:00:05]} Nf6 {[%emt 0:00:25]} 36. b6 {[%emt 0:00:36]} Nxe4 {[%emt 0:00:32]} 37. b7 {[%emt 0:00:42]} Rb8 $1 {[%emt 0:00:22]} 38. Rb2 {[%emt 0:01:07] [#]} (38. Bxb8 $2 Qxb8 39. Qe1 (39. f3 $2 Nd6 $19) 39... Qxb7 $19 (39... Rxb7 $2 40. Rc8 $19)) (38. Qb5 $1 $11 Qe7 (38... Rxd5 39. Qb6 $16) 39. Qb6 (39. Bxb8 Rxb7 40. d6 Rxb5 $11) 39... Rxb7 40. Qxb7) 38... Nd6 $1 $17 {[%emt 0:00:54]} 39. Bxb8 {[%emt 0:00:21]} Qxb8 {[%emt 0:00:01]} 40. Qa6 {[%emt 0:00:00]} Rxb7 $2 {[%emt 0:00:00]} (40... Nxb7 41. Qc6 Be8 (41... Rxd5 $2 42. Rxb7 Qf8 43. Qa6 $18) 42. Rcb1 $11) (40... Bxd5 $17 {stays on course.} 41. Rd1 (41. Qa4 $2 Rxb7 42. Re2 e4 $19) 41... e4 (41... Bxb7 42. Rxb7 Qxb7 43. Qxb7 $17) (41... Nxb7 42. Qb5 $16) 42. Rxd5 Bxb2) 41. Rxb7 $16 {[%emt 0:03:05]} Nxb7 {[%emt 0:05:42]} 42. Qb6 {[%emt 0:02:17]} Qd8 {[%emt 0:16:54]} 43. Qxb7 {[%emt 0:01:17]} Bxd5 {[%emt 0:00:04]} 44. Qa7 {[%emt 0:01:10]} Qf6 {[%emt 0:03:35]} ({Not} 44... Bxg2 $2 45. Rc7 $18) 45. Rc7 {[%emt 0:03:04]} h5 {[%emt 0:02:50]} 46. h4 {[%emt 0:03:14]} f4 {[%emt 0:03:11]} (46... Kh6 $142 47. Nd2 e4) 47. Qc5 $18 {[%emt 0:03:21]} Bg8 $2 {[%emt 0:01:15]} (47... Qd8 {is more resistant.} 48. Qa7 Qf6) 48. Nd2 $18 {[%emt 0:01:16]} Kh8 {[%emt 0:00:31]} 49. Ne4 {[%emt 0:01:28]} Qxh4 {[%emt 0:01:18]} 50. Qd6 {[%emt 0:00:26]} f3 {[%emt 0:00:39]} 51. Qxg6 {[%emt 0:03:20]} 1-0